bitfinex/quotes_ETHUSD_20251107
["timestamp","ask_amount","ask_price","bid_price","bid_amount"]
[1762540559497,3.32350808,3427.0,3426.9,0.001]
[1762540559701,3.37880808,3427.0,3426.9,0.001]
[1762540560003,3.86860808,3427.0,3426.9,0.001]
[1762540560299,5.93294264,3427.0,3426.9,0.001]
[1762540561098,5.44314264,3427.0,3426.9,0.001]
[1762540561307,1.720516,3427.0,3426.9,0.001]
[1762540561515,4.58322008,3427.0,3426.9,0.001]
[1762540562218,0.4898,3427.4,3426.9,0.001]
[1762540562393,2.91785947,3427.2,3426.9,0.001]
[1762540562712,2.91800408,3427.0,3426.9,0.001]
[1762540562861,0.4526,3427.2,3426.9,0.001]
[1762540563198,0.457,3427.0,3426.9,0.001]
[1762540563396,3.37500408,3427.0,3426.9,0.001]
[1762540563562,0.405504,3427.3,3426.9,0.001]
[1762540563761,0.73782748,3427.3,3426.9,0.001]
[1762540564198,0.405504,3427.3,3426.9,0.001]
[1762540564413,0.1909,3427.9,3426.9,0.487]
[1762540564774,0.002,3428.0,3427.5,2.91751607]
[1762540564982,0.002,3428.0,3427.5,2.91755207]
[1762540565177,0.002,3428.0,3427.6,0.1974]
[1762540565375,0.002,3428.0,3427.6,0.6834]
[1762540565996,0.002,3428.0,3427.9,0.4503]
[1762540566197,0.002,3428.0,3427.3,0.1974]
[1762540566198,2.91741235,3427.7,3427.3,0.1974]
[1762540566400,0.1456,3427.9,3427.0,0.1974]
[1762540566401,0.1456,3427.1,3427.0,0.1974]
[1762540566914,0.405504,3427.9,3427.2,2.91780837]
[1762540567084,0.588104,3427.9,3427.0,0.1974]
[1762540567285,0.588104,3427.9,3426.9,0.001]
[1762540567286,3.32350808,3427.0,3426.9,0.001]
[1762540567517,4.41170951,3427.0,3426.9,0.001]
[1762540567702,5.67142151,3427.0,3426.9,0.001]
[1762540568414,0.001,3427.0,3426.9,0.001]
[1762540568599,0.405504,3427.5,3426.9,0.4513]
[1762540568770,0.002,3428.0,3426.9,0.4513]
[1762540568974,0.002,3428.0,3427.1,2.91791894]
[1762540568975,1.259712,3427.7,3427.1,2.91791894]
[1762540569209,0.002,3428.0,3427.2,0.1974]
[1762540569372,0.1826,3427.8,3426.9,0.001]
[1762540569574,3.32297227,3427.7,3426.9,0.487]
[1762540569774,0.002,3428.0,3426.9,0.487]
[1762540569980,1.259712,3427.7,3426.9,3.40503508]
[1762540570185,3.09990932,3427.9,3426.9,0.001]
[1762540570186,0.1826,3427.9,3426.9,0.001]
[1762540570391,2.91765191,3427.5,3426.9,0.001]
[1762540570580,2.91781184,3427.3,3426.9,0.001]
[1762540570910,0.405504,3427.8,3426.9,0.487]
[1762540571216,0.405504,3427.6,3427.2,0.1974]
[1762540571509,0.1849816,3427.7,3426.9,0.487]
[1762540571510,0.405504,3427.5,3426.9,0.487]
[1762540571698,1.259712,3427.6,3427.1,3.11528865]
[1762540571901,0.002,3428.0,3427.5,0.4503]
[1762540572127,0.002,3428.0,3427.6,0.02917493]
[1762540572336,1.261712,3428.0,3427.3,2.91766628]
[1762540572636,1.261712,3428.0,3427.2,0.486]
[1762540572637,0.002,3428.0,3427.6,2.91748704]
[1762540572840,0.002,3428.0,3427.2,0.486]
[1762540573138,0.002,3428.0,3427.9,0.4503]
[1762540573312,0.002,3428.0,3427.3,0.486]
[1762540573515,0.002,3428.0,3427.9,3.36753795]
[1762540573717,0.002,3428.0,3427.9,3.85353795]
[1762540574420,0.002,3428.0,3427.9,4.53354712]
[1762540576045,0.002,3428.0,3427.9,0.9363]
[1762540576448,0.002,3428.0,3427.6,2.91742247]
[1762540576634,0.002,3428.0,3426.9,0.001]
[1762540576635,0.405504,3427.8,3426.9,0.487]
[1762540576833,0.1826,3427.9,3426.9,0.001]
[1762540576834,3.32350808,3427.0,3426.9,0.001]
[1762540577017,3.78136889,3427.0,3426.9,0.001]
[1762540577227,5.49028089,3427.0,3426.9,0.001]
[1762540578849,5.04108089,3427.0,3426.9,0.001]
[1762540579010,1.665216,3427.0,3426.9,0.001]
[1762540580026,1.779316,3427.0,3426.9,0.001]
[1762540580221,1.665216,3427.0,3426.9,0.001]
[1762540580734,1.665216,3427.0,3426.9,0.4513]
[1762540580943,1.665216,3427.0,3426.9,0.001]
[1762540581644,1.665216,3427.0,3426.9,3.36938923]
[1762540581822,1.665216,3427.0,3426.9,3.85538923]
[1762540582225,0.1826,3427.9,3426.9,1.61466403]
[1762540582551,2.84117814,3428.1,3427.4,2.91758804]
[1762540582753,1.259712,3428.1,3427.0,0.486]
[1762540582958,3.32307773,3427.6,3426.9,2.91907775]
[1762540583144,1.665216,3427.6,3427.1,3.11531337]
[1762540583453,4.58268874,3427.7,3427.2,0.486]
[1762540583650,0.405504,3427.8,3427.1,0.1974]
[1762540583864,1.259712,3427.8,3427.1,0.1974]
[1762540584163,0.405504,3427.7,3427.1,0.1974]
[1762540584313,1.665216,3427.6,3426.9,0.001]
[1762540584513,0.405504,3427.4,3426.9,0.001]
[1762540584948,2.91758825,3427.5,3426.9,0.001]
[1762540584949,1.665216,3427.5,3427.0,2.91800293]
[1762540585151,0.405504,3427.5,3427.1,2.91785191]
[1762540585448,0.002,3428.4,3427.4,0.1974]
[1762540585609,2.91722151,3428.0,3427.4,0.1974]
[1762540585808,1.665216,3427.9,3427.4,3.11506087]
[1762540586036,1.259712,3427.9,3427.4,3.11506087]
[1762540586433,1.259712,3428.0,3427.5,0.486]
[1762540586630,0.405504,3427.9,3427.5,0.486]
[1762540586856,0.002,3428.4,3427.5,0.486]
[1762540587083,1.259712,3428.3,3427.9,0.4503]
[1762540587369,1.261712,3428.4,3427.7,2.91738666]
[1762540587533,0.002,3428.0,3427.7,2.91738666]
[1762540587732,0.002,3428.0,3427.5,0.486]
[1762540587733,0.1456,3427.7,3427.5,2.91752805]
[1762540587933,0.002,3428.0,3427.9,3.36753795]
[1762540588482,0.002,3428.0,3427.5,0.3114928]
[1762540588764,0.002,3428.0,3427.4,0.1974]
[1762540588931,0.1456,3427.7,3427.4,0.1974]
[1762540589131,0.1456,3427.5,3427.4,3.11505185]
[1762540589469,0.1456,3427.5,3426.9,0.1466]
[1762540589470,0.405504,3427.4,3426.9,0.001]
[1762540589634,3.32350808,3427.0,3426.9,0.001]
[1762540589838,0.519604,3427.0,3426.9,0.001]
[1762540590063,4.69732008,3427.0,3426.9,0.001]
[1762540590369,1.779316,3427.0,3426.9,0.001]
[1762540590543,2.6982231,3427.0,3426.9,0.001]
[1762540590866,0.405504,3427.0,3426.9,0.001]
[1762540591260,0.405504,3427.3,3426.9,0.4513]
[1762540591462,0.405504,3427.3,3426.9,3.36938803]
[1762540591644,0.1826,3427.9,3427.1,2.91786905]
[1762540591849,1.712312,3428.6,3427.3,2.91767937]
[1762540592049,0.405504,3427.8,3427.4,2.91765567]
[1762540592391,0.002,3428.0,3427.7,2.91740817]
[1762540592536,0.002,3428.0,3427.9,3.38113795]
[1762540592736,0.005,3428.9,3428.3,2.91689758]
[1762540592963,0.005,3428.9,3428.3,3.96420262]
[1762540593179,0.005,3428.9,3428.3,4.45600262]
[1762540595473,0.005,3428.9,3428.3,3.38079758]
[1762540595675,0.005,3428.9,3428.3,3.87259758]
[1762540596743,0.410504,3428.9,3428.3,0.9557]
[1762540596943,0.410504,3428.9,3428.3,3.87259758]
[1762540597170,0.005,3428.9,3428.3,3.87259758]
[1762540598459,0.410504,3428.9,3428.3,0.4639]
[1762540598758,0.005,3428.9,3428.3,0.4639]
[1762540599079,0.407504,3428.7,3428.3,0.4639]
[1762540599478,0.1456,3428.3,3428.1,2.91701299]
[1762540599682,0.1456,3428.1,3428.0,2.91712166]
[1762540599883,0.1456,3428.1,3428.0,3.40892166]
[1762540600087,0.1456,3428.1,3428.0,3.87282166]
[1762540600394,0.1456,3428.1,3427.6,0.4918]
[1762540600684,0.405504,3428.3,3427.6,0.4918]
[1762540600887,0.1456,3427.7,3427.6,3.40929328]
[1762540601382,0.1456,3427.7,3427.6,3.89919328]
[1762540601587,0.1456,3427.7,3427.3,0.1958]
[1762540601754,2.91881529,3428.4,3427.3,0.6804]
[1762540601755,0.407504,3428.4,3427.3,0.6804]
[1762540601954,0.405504,3427.7,3427.2,2.91782291]
[1762540602195,0.4997,3428.3,3426.9,0.4856]
[1762540602196,1.259712,3428.0,3427.3,0.4846]
[1762540602353,1.665216,3428.3,3427.6,0.4899]
[1762540602660,0.407504,3428.4,3427.8,2.91727178]
[1762540603162,0.407504,3428.4,3427.3,0.4846]
[1762540603163,2.91700037,3428.2,3427.4,2.91766353]
[1762540603485,0.405504,3428.0,3427.8,2.91725117]
[1762540603691,1.259712,3428.2,3427.7,2.91739804]
[1762540604054,2.164916,3428.1,3427.1,0.1894]
[1762540604263,2.164916,3428.1,3426.2,56.61648764]
[1762540604264,2.91723795,3427.9,3426.6,2.91830547]
[1762540604474,0.905204,3428.0,3426.3,0.4846]
[1762540604475,3.32340581,3427.2,3426.3,0.4846]
[1762540604675,5.01552008,3427.0,3426.2,50.001]
[1762540605073,5.32672008,3427.0,3426.2,50.001]
[1762540605276,6.15118227,3427.0,3426.2,50.001]
[1762540605662,1.665216,3427.0,3426.3,2.91859135]
[1762540605868,1.910416,3427.0,3426.8,0.001]
[1762540606592,1.665216,3427.0,3426.8,0.001]
[1762540606889,1.665216,3427.0,3426.9,3.40898923]
[1762540607100,1.259712,3427.0,3426.9,3.89358923]
[1762540607388,1.259712,3427.0,3426.9,3.40898923]
[1762540607591,0.002,3428.4,3426.9,1.60831756]
[1762540607791,0.002,3428.4,3428.0,2.91715285]
[1762540607955,0.002,3428.4,3427.9,0.1894]
[1762540608156,0.002,3428.4,3427.9,0.674]
[1762540608353,0.5017,3428.4,3427.7,2.91739482]
[1762540608571,2.91690818,3428.3,3427.6,2.91748581]
[1762540608768,0.002,3428.4,3427.5,0.4846]
[1762540609012,0.002,3428.4,3428.3,0.4899]
[1762540609317,0.002,3428.4,3428.3,3.40679758]
[1762540609788,0.002,3428.4,3428.0,0.4846]
[1762540609789,0.002,3428.4,3428.2,2.91695381]
[1762540609993,0.002,3428.4,3427.4,0.1894]
[1762540610156,0.002,3428.4,3428.3,3.40679758]
[1762540610357,0.002,3428.4,3428.3,4.03917722]
[1762540610591,0.002,3428.4,3428.3,4.52377722]
[1762540610774,0.002,3428.4,3428.3,4.55294619]
[1762540611091,0.002,3428.4,3428.3,4.52377722]
[1762540612362,0.002,3428.4,3428.3,3.89139758]
[1762540612690,0.002,3428.4,3428.3,3.40679758]
[1762540612892,0.002,3428.4,3428.3,2.91689758]
[1762540613255,0.405504,3428.2,3427.8,0.4846]
[1762540613479,0.002,3428.4,3427.4,0.335]
[1762540613724,0.002,3428.4,3427.1,0.1894]
[1762540613725,0.405504,3428.2,3427.1,0.1894]
[1762540613883,1.665216,3428.0,3427.2,2.9178338]
[1762540614081,0.405504,3428.2,3427.2,0.65108869]
[1762540614323,0.405504,3427.8,3427.1,0.1894]
[1762540614489,0.405504,3427.8,3426.9,0.001]
[1762540614490,0.405504,3427.6,3427.0,2.91798702]
[1762540614684,4.58279088,3427.6,3426.9,2.91903326]
[1762540614882,4.58279088,3427.6,3427.0,2.9179701]
[1762540614883,3.32300612,3427.6,3427.0,2.9179701]
[1762540615212,2.91749328,3427.6,3426.9,0.001]
[1762540615395,3.32342911,3427.1,3426.9,0.001]
[1762540615583,0.0539,3427.0,3426.9,0.001]
[1762540615931,0.405504,3427.0,3426.9,0.001]
[1762540616628,0.405504,3427.0,3426.9,2.91908923]
[1762540616816,0.405504,3427.0,3426.9,0.001]
[1762540620325,0.405504,3427.7,3426.9,0.9755]
[1762540620527,1.665216,3427.3,3426.9,0.001]
[1762540620733,0.405504,3427.3,3426.9,0.001]
[1762540620950,0.1878,3427.9,3426.9,0.001]
[1762540621339,0.405504,3427.7,3426.9,0.001]
[1762540621534,0.1878,3427.9,3427.5,2.91751539]
[1762540621737,0.1878,3427.9,3427.3,0.1894]
[1762540622048,0.1878,3427.9,3427.5,2.91754403]
[1762540622221,0.1878,3427.9,3426.9,0.001]
[1762540622222,0.0674,3427.2,3426.9,0.001]
[1762540622423,0.859804,3427.0,3426.9,0.001]
[1762540622832,0.405504,3427.8,3426.9,0.4691]
[1762540623035,0.405504,3427.3,3426.9,0.001]
[1762540623333,1.259712,3427.4,3426.9,0.001]
[1762540623512,4.5830498,3427.2,3427.1,0.001]
[1762540623917,4.6504498,3427.2,3427.1,0.001]
[1762540624244,5.1323498,3427.2,3427.1,0.001]
[1762540625220,2.214516,3427.2,3427.1,0.001]
[1762540625410,4.6504498,3427.2,3427.1,0.001]
[1762540625617,5.93735823,3427.2,3427.1,0.001]
[1762540626050,3.01952443,3427.2,3427.1,0.001]
[1762540626274,4.5830498,3427.2,3427.1,0.001]
[1762540626423,4.6546498,3427.2,3427.1,0.001]
[1762540626750,4.5830498,3427.2,3427.1,0.001]
[1762540626957,1.740816,3427.2,3427.1,0.001]
[1762540627252,5.1323498,3427.2,3427.1,0.001]
[1762540627455,5.93735219,3427.2,3427.1,0.001]
[1762540628153,5.93735219,3427.2,3426.9,0.001]
[1762540628154,3.32350808,3427.0,3426.9,0.001]
[1762540628356,4.58792008,3427.0,3426.9,0.001]
[1762540628569,1.665216,3427.0,3426.9,0.4691]
[1762540628728,0.1878,3427.9,3426.9,0.001]
[1762540628729,3.59104234,3427.9,3426.9,0.001]
[1762540628934,1.32461255,3427.9,3426.9,0.4691]
[1762540629131,0.488,3428.8,3427.0,0.51288004]
[1762540629359,0.488,3428.8,3427.9,2.91718184]
[1762540629360,0.1456,3428.0,3427.9,2.91718184]
[1762540629768,0.1456,3428.0,3427.8,2.91726735]
[1762540629970,0.405504,3428.5,3427.3,0.664]
[1762540630265,2.91881535,3428.4,3427.7,2.91740291]
[1762540630430,2.91881535,3428.4,3427.3,0.664]
[1762540630431,0.1456,3427.7,3427.4,2.91765189]
[1762540630628,0.1456,3427.6,3427.5,2.91751538]
[1762540630968,0.1456,3427.6,3427.3,0.664]
[1762540631279,0.1456,3427.6,3427.5,2.9175784]
[1762540631453,0.1456,3427.6,3427.5,3.3856784]
[1762540632499,0.1456,3427.6,3427.5,3.89855418]
[1762540632791,0.1456,3427.6,3427.5,3.8693784]
[1762540633153,0.002,3428.4,3428.3,2.91689758]
[1762540633359,0.002,3428.4,3428.3,3.86869758]
[1762540633559,0.002,3428.4,3427.8,0.4837]
[1762540633760,0.1476,3428.4,3428.3,2.91689758]
[1762540634261,0.1476,3428.4,3428.3,3.38499758]
[1762540634782,0.1476,3428.4,3428.3,4.54726696]
[1762540635989,0.1476,3428.4,3427.8,0.6293]
[1762540636299,0.1476,3428.4,3428.2,2.91691243]
[1762540636482,0.1476,3428.4,3428.3,2.91689758]
[1762540636795,0.1476,3428.4,3428.3,3.86869758]
[1762540636998,0.2109,3428.4,3427.3,0.664]
[1762540637199,0.1456,3428.0,3427.4,0.6293]
[1762540637368,0.1456,3428.0,3427.9,2.91723795]
[1762540637771,0.405504,3427.9,3426.9,0.001]
[1762540637965,0.0048,3427.8,3426.9,0.001]
[1762540638178,0.0048,3427.8,3427.2,2.9178338]
[1762540638179,0.1456,3427.3,3427.2,2.9178338]
[1762540638387,0.1456,3427.3,3426.9,0.001]
[1762540638581,0.1456,3427.1,3427.0,0.4837]
[1762540638780,0.1456,3427.1,3427.0,3.40170408]
[1762540639106,0.1456,3427.1,3427.0,3.86980408]
[1762540639669,0.488,3428.4,3427.1,2.91791894]
[1762540639670,0.002,3428.4,3427.1,2.91791894]
[1762540639988,0.1456,3428.1,3427.5,0.1456]
[1762540640325,0.002,3428.4,3428.3,2.91689758]
[1762540640608,0.002,3428.4,3428.3,3.38499758]
[1762540640773,0.002,3428.4,3428.3,3.89786655]
[1762540640968,0.002,3428.8,3428.6,2.91664236]
[1762540641276,0.486,3430.7,3429.0,2.91630212]
[1762540641475,0.486,3430.7,3428.9,2.91638717]
[1762540641476,0.486,3430.7,3429.4,3.09626197]
[1762540641677,0.486,3430.7,3429.4,3.57996197]
[1762540641888,0.486,3430.7,3429.4,3.09626197]
[1762540641889,1.259712,3430.3,3429.4,3.09626197]
[1762540642100,0.1886,3429.8,3429.4,2.91596197]
[1762540642408,0.1886,3429.8,3428.8,0.1803]
[1762540642600,0.405504,3429.7,3428.9,2.91638717]
[1762540642802,0.405504,3429.7,3428.8,0.1803]
[1762540643002,0.405504,3429.7,3429.2,2.91605418]
[1762540643202,3.32122385,3429.7,3428.8,0.48998333]
[1762540643378,0.405504,3429.7,3428.8,0.1803]
[1762540643784,0.405504,3429.7,3429.0,2.9162361]
[1762540644111,0.405504,3429.7,3428.9,2.91638717]
[1762540644315,0.405504,3429.4,3428.9,2.91638717]
[1762540644809,0.002,3429.5,3428.3,0.4837]
[1762540645008,0.002,3429.5,3428.8,2.91644915]
[1762540645319,0.405504,3428.9,3428.3,2.91689489]
[1762540645515,0.405504,3429.0,3428.2,0.1803]
[1762540645685,0.405504,3429.0,3427.7,2.91736052]
[1762540645686,1.02928128,3429.0,3427.7,2.91740817]
[1762540646015,1.02928128,3429.0,3428.0,2.91711712]
[1762540646016,0.405504,3428.6,3428.0,2.91711712]
[1762540646177,0.405504,3428.8,3428.3,2.91683706]
[1762540646711,0.488,3429.5,3428.7,2.91647727]
[1762540646916,1.259712,3429.3,3428.7,2.91647727]
[1762540647111,3.32153864,3429.4,3428.5,2.91672716]
[1762540647112,1.259712,3429.4,3428.5,0.02916727]
[1762540647332,1.261712,3429.5,3428.9,2.91635776]
[1762540647533,0.405504,3429.4,3428.9,2.91635776]
[1762540647733,0.002,3429.5,3429.2,2.91612326]
[1762540647934,0.002,3429.5,3429.1,2.9161873]
[1762540648097,0.002,3429.5,3429.1,2.91619639]
[1762540648303,0.002,3429.5,3428.7,2.91655729]
[1762540648641,0.002,3429.5,3429.4,2.91596197]
[1762540649132,0.002,3429.5,3429.4,3.39966197]
[1762540652004,0.002,3429.5,3429.4,3.86776197]
[1762540652601,0.002,3429.5,3429.4,3.38406197]
[1762540652815,0.002,3429.5,3429.4,2.91596197]
[1762540653299,0.002,3429.5,3429.4,3.38356197]
[1762540653496,0.002,3429.5,3429.4,4.02808414]
[1762540654962,0.002,3429.5,3429.4,4.47828414]
[1762540655615,0.002,3429.5,3429.4,4.02808414]
[1762540655808,0.002,3429.5,3429.4,2.91596197]
[1762540656048,0.1476,3429.5,3429.4,2.91596197]
[1762540656648,0.1476,3429.5,3429.0,0.1456]
[1762540656947,0.1476,3429.5,3428.1,2.91706776]
[1762540656948,0.0509,3429.1,3428.1,2.91706776]
[1762540657146,0.405504,3429.3,3428.1,0.48232678]
[1762540657312,0.405504,3429.3,3428.2,3.36718267]
[1762540657313,0.1456,3428.5,3428.2,3.36718267]
[1762540657512,0.1456,3428.5,3428.4,2.9168125]
[1762540658915,0.1456,3428.5,3428.4,3.3844125]
[1762540659110,0.1456,3428.5,3428.4,3.8346125]
[1762540659327,1.665216,3429.3,3429.0,2.91623787]
[1762540659551,1.665216,3429.3,3428.7,2.91655729]
[1762540659552,0.1456,3428.8,3428.7,2.91655729]
[1762540660221,0.1456,3428.8,3428.7,3.38415729]
[1762540660421,0.002,3429.5,3429.2,2.91605456]
[1762540660723,0.1476,3429.5,3429.4,2.91596197]
[1762540660929,0.002,3429.5,3429.4,3.95286362]
[1762540661159,0.002,3429.5,3429.4,4.43816362]
[1762540663264,0.002,3429.5,3429.4,2.91596197]
[1762540663729,0.002,3429.5,3429.0,0.1456]
[1762540663930,0.002,3429.5,3428.4,4.86623937]
[1762540663931,0.4695,3429.4,3428.5,2.91672422]
[1762540664264,0.405504,3429.3,3428.8,2.91644072]
[1762540664576,0.405504,3429.3,3428.2,0.4853]
[1762540664577,0.1456,3428.8,3428.7,2.91655729]
[1762540664776,0.002,3429.5,3428.7,2.91655729]
[1762540664777,0.1476,3429.5,3429.4,2.91596197]
[1762540664973,0.1476,3429.5,3429.4,3.39882158]
[1762540665266,0.002,3429.5,3429.4,3.85496197]
[1762540665765,0.002,3429.5,3429.4,2.91596197]
[1762540666331,0.002,3429.5,3429.4,3.85496197]
[1762540666656,0.002,3429.5,3429.4,4.53206362]
[1762540666864,0.002,3429.5,3429.4,3.59306362]
[1762540667050,0.002,3429.5,3429.4,2.91596197]
[1762540667250,0.002,3429.5,3428.7,0.29165573]
[1762540667251,0.4578,3429.5,3428.7,0.29165573]
[1762540667542,0.5511,3429.5,3429.1,2.9161421]
[1762540667747,0.5511,3429.5,3429.2,2.91610621]
[1762540668070,0.5511,3429.5,3428.9,2.91632593]
[1762540668237,0.5511,3429.5,3428.5,2.91672743]
[1762540668238,0.405504,3429.4,3428.5,2.91672743]
[1762540668586,0.405504,3429.4,3429.0,2.91621919]
[1762540668735,0.407504,3429.5,3429.1,2.91621203]
[1762540669130,0.877004,3429.5,3429.1,2.91621203]
[1762540669374,0.002,3429.5,3428.6,0.34020274]
[1762540669675,0.002,3429.5,3427.2,0.585804]
[1762540669676,0.405504,3429.3,3429.2,2.91613204]
[1762540670386,0.002,3429.5,3429.4,2.91596197]
[1762540670741,0.002,3429.5,3428.4,3.40210651]
[1762540671081,0.002,3429.5,3428.1,4.17675849]
[1762540671082,0.002,3429.5,3428.5,0.4853]
[1762540671487,0.002,3429.5,3429.4,2.91596197]
[1762540671775,0.002,3429.5,3428.5,0.4853]
[1762540671960,0.405504,3429.4,3428.1,0.4853]
[1762540672141,0.405504,3429.4,3428.9,2.91632021]
[1762540672342,0.405504,3429.4,3429.1,2.91621069]
[1762540672343,1.20233738,3429.4,3429.1,2.91621069]
[1762540672641,0.002,3429.5,3429.4,2.91596197]
[1762540672837,0.002,3429.5,3428.4,2.9168125]
[1762540673036,0.002,3429.5,3429.4,2.91596197]
[1762540673365,0.002,3429.5,3428.5,0.4853]
[1762540673537,0.002,3429.5,3429.4,2.91596197]
[1762540674865,0.002,3429.5,3429.0,2.91621981]
[1762540675064,0.002,3429.5,3428.8,0.4853]
[1762540675366,0.002,3429.5,3428.9,0.4853]
[1762540675566,0.002,3429.5,3429.1,2.91614101]
[1762540675867,0.002,3429.5,3427.3,3.32323513]
[1762540675868,0.002,3429.5,3428.4,0.4853]
[1762540676065,0.002,3429.5,3427.7,1.259712]
[1762540676066,0.002,3429.5,3429.1,2.91615194]
[1762540676234,0.405504,3429.3,3428.1,8.75120328]
[1762540676431,0.1456,3429.0,3428.9,2.91638717]
[1762540676837,0.1456,3429.0,3428.9,3.85538717]
[1762540677171,0.002,3429.5,3429.4,2.91596197]
[1762540677373,0.002,3429.5,3428.9,3.85535102]
[1762540677374,0.002,3429.5,3428.9,0.4853]
[1762540677694,0.002,3429.5,3428.5,0.4853]
[1762540677695,0.1456,3429.0,3428.5,0.4853]
[1762540677839,0.405504,3429.4,3428.5,0.4853]
[1762540678037,0.1456,3428.8,3428.7,2.91655729]
[1762540678239,0.002,3429.5,3428.6,2.91664236]
[1762540678552,0.1456,3429.0,3428.9,2.91638717]
[1762540678938,0.1456,3429.0,3428.9,3.85538717]
[1762540679140,0.002,3429.5,3429.3,2.91596278]
[1762540679340,0.002,3429.5,3429.0,2.91629518]
[1762540679547,0.002,3429.5,3429.4,2.91596197]
[1762540680166,0.002,3429.5,3429.3,2.91599465]
[1762540680552,0.002,3429.5,3429.4,2.91596197]
[1762540680978,0.002,3429.5,3429.4,0.939]
[1762540681149,0.002,3429.5,3429.1,2.91714063]
[1762540681376,0.002,3429.5,3429.4,2.91596197]
[1762540682088,0.002,3429.5,3429.4,3.83526197]
[1762540682269,0.002,3429.5,3429.4,4.04490137]
[1762540682590,0.002,3429.5,3429.4,3.36966197]
[1762540683638,0.5474,3429.5,3429.1,0.001]
[1762540683842,0.002,3429.5,3429.4,2.91596197]
[1762540684080,0.002,3429.5,3429.4,3.36646197]
[1762540684264,0.002,3429.5,3429.4,3.83206197]
[1762540684483,0.002,3429.5,3429.4,4.79857867]
[1762540685058,0.002,3429.5,3429.1,0.001]
[1762540685261,0.002,3429.5,3429.4,2.91596197]
[1762540685466,0.002,3429.5,3429.1,0.001]
[1762540685673,0.002,3429.5,3429.1,2.9171663]
[1762540685985,0.002,3429.5,3429.1,0.001]
[1762540685986,0.405504,3429.4,3429.1,0.001]
[1762540686283,0.405504,3429.4,3429.2,2.91609047]
[1762540686596,0.405504,3429.4,3429.1,0.001]
[1762540686597,4.66104804,3429.2,3429.1,0.001]
[1762540686902,0.405504,3428.8,3428.4,0.001]
[1762540687111,0.594004,3428.8,3428.4,0.001]
[1762540687257,0.673604,3428.8,3428.4,0.001]
[1762540687457,0.405504,3428.8,3428.6,2.91658112]
[1762540687661,0.4696,3429.1,3428.6,2.91658112]
[1762540687662,0.002,3429.5,3428.7,0.9171]
[1762540687963,0.002,3429.5,3429.3,2.91600639]
[1762540688164,0.002,3429.5,3429.4,2.91596197]
[1762540689073,0.002,3429.5,3428.8,0.4656]
[1762540689269,0.1456,3429.2,3429.1,2.91621708]
[1762540690355,0.1456,3429.2,3429.1,3.36671708]
[1762540690868,0.1456,3429.2,3429.1,4.50717995]
[1762540691075,0.1456,3429.2,3429.1,2.91621708]
[1762540693591,0.002,3429.5,3429.4,2.91596197]
[1762540693814,0.002,3429.5,3429.4,3.36646197]
[1762540694021,0.0816,3429.5,3428.8,0.1456]
[1762540694326,0.1456,3428.8,3428.7,0.001]
[1762540694491,0.630004,3428.8,3428.7,0.001]
[1762540694823,1.096404,3428.8,3428.7,0.001]
[1762540695024,0.630004,3428.8,3428.7,0.001]
[1762540695781,0.630004,3428.8,3428.7,2.91755729]
[1762540696522,4.01287623,3428.8,3428.7,0.001]
[1762540696731,5.27258823,3428.8,3428.7,0.001]
[1762540696931,5.98436381,3428.8,3428.7,0.001]
[1762540697137,3.06789158,3428.8,3428.7,0.001]
[1762540697323,2.356116,3428.8,3428.7,0.001]
[1762540698382,5.27258823,3428.8,3428.7,0.001]
[1762540699819,5.27258823,3428.8,3428.7,2.91755729]
[1762540699820,0.551104,3428.8,3428.7,2.91755729]
[1762540700008,0.551104,3428.8,3428.7,0.001]
[1762540700009,0.692,3428.8,3428.7,0.001]
[1762540700325,1.097504,3428.8,3428.7,0.001]
[1762540700617,0.633904,3428.8,3428.7,0.001]
[1762540700983,1.097504,3428.8,3428.7,0.001]
[1762540701183,4.01397623,3428.8,3428.7,0.001]
[1762540701600,1.097504,3428.8,3428.7,0.001]
[1762540702284,5.27368823,3428.8,3428.7,0.001]
[1762540702491,6.11144502,3428.8,3428.7,0.001]
[1762540702687,6.546021,3428.8,3428.7,0.001]
[1762540703222,6.11144502,3428.8,3428.7,0.001]
[1762540704358,3.65769865,3430.0,3428.7,0.001]
[1762540704359,0.002,3429.5,3429.4,2.91596197]
[1762540704543,0.002,3429.5,3429.4,3.36646197]
[1762540704851,0.002,3429.5,3429.4,3.83206197]
[1762540706223,0.002,3429.5,3429.4,3.97766197]
[1762540707738,0.002,3429.5,3429.4,3.83206197]
[1762540707952,0.002,3429.5,3429.4,5.09177397]
[1762540708178,1e-08,3429.9,3429.8,9.97287346]
[1762540708381,0.005,3430.9,3430.8,2.91477206]
[1762540708880,0.005,3430.9,3430.8,3.36527206]
[1762540709878,0.005,3430.9,3430.7,0.1875]
[1762540709879,0.005,3430.9,3430.4,0.1875]
[1762540710093,0.656004,3430.8,3430.5,2.91500225]
[1762540710241,0.656004,3430.8,3430.0,0.1875]
[1762540710443,0.656004,3430.8,3430.1,2.9153584]
[1762540710657,0.656004,3430.8,3430.4,2.91504432]
[1762540711284,0.656004,3430.8,3430.5,2.91502452]
[1762540711588,0.656004,3430.8,3427.4,2.02003029]
[1762540711589,0.405504,3430.6,3429.3,0.4656]
[1762540711882,0.405504,3430.6,3430.0,2.91540459]
[1762540712093,0.405504,3430.4,3430.3,2.91519692]
[1762540712247,0.005,3430.9,3430.5,2.91495559]
[1762540712447,0.405504,3430.8,3430.4,2.91509247]
[1762540712758,0.405504,3430.8,3429.6,0.1808]